Cogmind - Beta 14 @@@ ROGUE MODE // 2025.03.17 @ 18:35:18 Player: the Result: Core destroyed Performance ------------- Evolutions (4) 2000 Regions Visited (9) 1800 Robots Destroyed (74) 370 Value Destroyed (1996) 1996 Prototype IDs (6) 120 Alien Tech Used (0) 0 Bonus (149) 149 TOTAL SCORE: 6435 Bonus ------- High Alert Combat Kills 369 Follower Combat Kills 297 Met Imprinter 300 Was Imprinted 300 Friendly Fire -1117 Cogmind --------- Core Integrity 0/850 Matter 114/300 Energy 109/1115 System Corruption 0% Temperature Critical (898) Movement Core (1300) Ox25 Location -6/Lower Caves Parts ------- > --- POWER (2) -------- Hybrid Fission Core Neutrino Core > --- PROPULSION (3) --- Heavy Treads Flexi-carbon Leg > --- UTILITY (5) ------ Enhanced Optical Array Advanced Sensor Array Signal Interpreter Improved Heavy Armor Plating > --- WEAPON (5) ------- Proton Cannon Proton Cannon Proton Cannon Proton Cannon Proton Cannon > --- INVENTORY (5) ---- Light Fission Core Heavy Treads Heavy Linear Accelerator Peak State ------------ > --- POWER ------------ Fusion Compressor Neutrino Core > --- PROPULSION ------- Heavy Treads Flexi-carbon Leg > --- UTILITY ---------- Experimental Thermal Generator Enhanced Optical Array Advanced Sensor Array Signal Interpreter Launcher Guidance Computer > --- WEAPON ----------- Proton Cannon Coil Gun Coil Gun Hypervelocity Coil Gun Heavy Pick > --- INVENTORY -------- Light Fission Core Light Fission Core Hybrid Fission Core Heavy Treads [Rating: 80] Favorites ----------- Power Light Ion Engine Engine Light Ion Engine Power Core Neutrino Core Propulsion Wheel Treads Heavy Treads Leg Flexi-carbon Leg Wheel Wheel Hover Unit Combat Airjet Flight Unit Flight Unit Utility Signal Interpreter Device Advanced Sensor Array Storage Small Storage Unit Processor Signal Interpreter Hackware System Shield Protection Improved Heavy Armor Plating Weapon Coil Gun Energy Gun Heavy Beamcaster Energy Cannon Proton Cannon Ballistic Gun Coil Gun Ballistic Cannon Heavy Flak Cannon Launcher Mini Grenade Launcher Piercing Weapon Heavy Pick Build | -11 -10 -9 -9 -7 -6 -6 -6 -6 -6 ------- Run | Yrd Mat Mat Min Zio Pro Fac Was Fac Low Slots Evolved 8 | . . 2 . . . 6 . . . Power 1 | . . . . . . 1 . . . Propulsion 1 | . . . . . . 1 . . . Utility 3 | . . 2 . . . 1 . . . Weapon 3 | . . . . . . 3 . . . Parts Attached 101 | 6 10 15 6 4 8 34 10 8 . Power 19 | 1 . 2 2 . 1 10 3 . . Engine 7 | 1 . 2 2 . . 2 . . . Core 12 | . . . . . 1 8 3 . . Reactor . | . . . . . . . . . . Propulsion 31 | 2 3 4 2 2 4 11 3 . . Treads 1 | . . . . . . . 1 . . Leg 9 | . 3 . . . . 4 2 . . Wheel 9 | 2 . . . . . 7 . . . Hover 6 | . . 1 1 1 3 . . . . Flight 6 | . . 3 1 1 1 . . . . Utility 19 | 1 4 3 1 . 1 4 1 4 . Device 7 | . 1 1 . . 1 2 1 1 . Storage 2 | 1 . . . . . . . 1 . Processor 5 | . 1 2 1 . . 1 . . . Hackware 1 | . . . . . . . . 1 . Protection 4 | . 2 . . . . 1 . 1 . Artifact . | . . . . . . . . . . Weapon 32 | 2 3 6 1 2 2 9 3 4 . Energy Gun 15 | 2 2 4 1 2 1 3 . . . Energy Cannon 7 | . 1 1 . . . . 1 4 . Ballistic Gun 4 | . . . . . . 3 1 . . Ballistic Cannon 1 | . . . . . . 1 . . . Launcher 4 | . . 1 . . 1 2 . . . Special Weapon . | . . . . . . . . . . Impact Weapon . | . . . . . . . . . . Slashing Weapon . | . . . . . . . . . . Piercing Weapon 1 | . . . . . . . 1 . . Special Melee Weapon . | . . . . . . . . . . Unidentified Prototypes 2 | . . . . . . 1 1 . . Parts Lost 16 | . . . . . 3 13 . . . Power 3 | . . . . . 1 2 . . . Propulsion 7 | . . . . . 2 5 . . . Utility 2 | . . . . . . 2 . . . Weapon 4 | . . . . . . 4 . . . Highest Loss Streak 4 | . . . . . 2 4 . . . To Critical Strikes . | . . . . . . . . . . Average Slot Usage (%) 84 | . 97 82 94 100 87 68 81 86 86 Engine 5 | . 14 9 11 11 5 1 . . . Core 5 | . . . . . 2 8 13 13 13 Treads 1 | . . . . . . . 3 6 6 Leg 3 | . 13 1 . . . 2 8 6 6 Wheel 3 | . 14 . . . . 7 . . . Hover 4 | . . 5 6 9 12 1 . . . Flight 3 | . . 9 15 12 . . . . . Device 9 | . 8 22 15 11 11 9 6 6 6 Processor 22 | . 2 19 28 33 33 19 20 16 13 Protection 1 | . 12 . . . . 1 . 3 6 Energy Gun 7 | . 26 9 5 11 11 8 . . . Energy Cannon 3 | . . 1 . . . . 5 15 33 Ballistic Gun 4 | . . . . . . 4 18 12 . Launcher 4 | . . 2 11 11 11 . . . . Peak Build Rating 80 | 6 11 14 20 25 31 65 80 78 77 Average Rating 42 | 4 10 10 15 23 26 53 63 74 77 On Entrance 29 | . 6 11 11 20 25 31 42 72 77 Naked Turns . | . . . . . . . . . . Heaviest Build 78 | 13 22 19 8 10 14 45 50 78 78 Greatest Support 70 | 20 20 20 12 12 18 40 70 70 70 Greatest Overweight (x) 4 | 1 1 2 . . 1 4 2 3 1 Average Overweight (x) . | . . . . . . 1 1 1 1 Largest Inventory Capacity 8 | 8 8 5 5 5 5 5 5 5 5 Average Capacity 5 | 6 5 5 5 5 5 5 5 5 5 Most Carried 7 | 3 7 5 5 5 5 5 5 5 5 Average Carried 4 | 2 4 4 4 4 4 3 4 5 5 Final Capacity 8 | 8 5 5 5 5 5 5 5 5 5 Final Carried 5 | 3 5 5 5 5 5 5 5 5 5 Class Distribution -------------------- 26% | Scavenger-Mutant 19% | Mutant 17% | Skirmisher 14% | Scavenger-Skirmisher 12% | Scavenger-Assassin 6% | Bomber Dominant Class ---------------- Mutant | -10/Materials Mutant | -9/Materials Scavenger-Mutant | -9/Mines Scavenger-Mutant | -7/Zion Mutant | -6/Proximity Caves Scavenger-Skirmisher | -6/Factory Scavenger-Assassin | -6/Waste Scavenger-Assassin | -6/Factory Skirmisher | -6/Lower Caves Resources | -11 -10 -9 -9 -7 -6 -6 -6 -6 -6 ----------- Run | Yrd Mat Mat Min Zio Pro Fac Was Fac Low Matter Collected 2214 | 260 90 104 392 40 110 700 380 74 64 Remotely . | . . . . . . . . . . Salvage Created 2779 | 153 111 213 29 67 122 1474 222 105 283 Parts 138 | 13 7 13 . 1 10 73 4 10 7 Haulers Intercepted . | . . . . . . . . . . Recyclers Shooed 3 | . . . . . . 3 . . . Parts Field Recycled . | . . . . . . . . . . Retrieved Matter . | . . . . . . . . . . Parts Self-Destructed 11 | . . . . 2 9 . . . . Prevented 6 | . . . . . 4 . . . 2 Kills | -11 -10 -9 -9 -7 -6 -6 -6 -6 -6 ------- Run | Yrd Mat Mat Min Zio Pro Fac Was Fac Low Combat Hostiles Destroyed 53 | . 3 10 9 . 4 23 . 1 3 Guns 30 | . 3 5 . . 2 19 . 1 . Cannons 3 | . . . . . . 1 . . 2 AOE 19 | . . 5 9 . 2 3 . . . Classes Destroyed 17 | 2 2 2 1 . 2 6 . . 2 Worker 9 | . . . . . . 7 . 2 . Builder 7 | . . 1 . . . 6 . . . Tunneler 4 | 3 . 1 . . . . . . . Recycler 1 | 1 . . . . . . . . . Drone 1 | . . . . . 1 . . . . Watcher 5 | . 1 2 . . . 1 . 1 . Swarmer 14 | . . 6 . . 2 6 . . . Grunt 16 | . 3 4 . . . 8 . 1 . Brawler 2 | . . . . . . . . . 2 Duelist 1 | . . . . . . 1 . . . Sentry 3 | . . . . . . 2 . . 1 Hunter 4 | . . . . . . 4 . . . Programmer 1 | . . . . . . 1 . . . Behemoth 2 | . . . . . 1 1 . . . Enhanced Grunt 1 | . . . . . . 1 . . . Assembled 9 | . . . 9 . . . . . . Fireman 1 | . . . . . . . . . 1 Mutant 2 | . . . . . . 2 . . . Best Kill Streak 14 | 3 2 6 8 . 2 14 . 2 3 Combat Bots Only 8 | . 1 5 8 . 2 8 . 1 3 Max Kills in Single Turn 4 | 1 1 3 2 . 1 4 . 1 1 Gunslinging 1 | . . 1 . . . . . . . Exploded 2 | . . 2 2 . 1 1 . . . Melee . | . . . . . . . . . . Uniques/NPCs Destroyed . | . . . . . . . . . . Combat | -11 -10 -9 -9 -7 -6 -6 -6 -6 -6 -------- Run | Yrd Mat Mat Min Zio Pro Fac Was Fac Low Hostile Shots Fired 310 | . 10 20 8 . 33 213 . 2 24 Missed 98 | . 2 6 6 . 10 70 . . 4 Damage Taken 3786 | . 118 131 86 . 341 2286 . 114 710 Core 1080 | . 17 76 24 . 105 481 . . 377 Absorbed by Shields . | . . . . . . . . . . Redirected to Shielding 104 | . . . . . . 104 . . . Regen/Repaired (Parts) 228 | . . 14 . . . 214 . . . Core Remaining (%) 80 | 100 93 . . . 48 . . . . Volleys Fired 130 | 9 13 11 15 9 10 51 . 7 5 Largest 5 | 2 2 2 1 1 2 5 . 5 5 Hottest 375 | 90 130 130 30 81 111 331 . 375 375 Shots Fired 283 | 18 26 18 15 9 15 132 . 30 20 Gun 203 | 18 26 14 . 9 10 111 . 15 . Cannon 50 | . . . . . . 15 . 15 20 Launcher 30 | . . 4 15 . 5 6 . . . Special . | . . . . . . . . . . Kinetic 75 | . . . . . . 60 . 15 . Thermal 143 | 18 26 14 . 9 10 66 . . . Explosive 30 | . . 4 15 . 5 6 . . . Electromagnetic 35 | . . . . . . . . 15 20 Robot Hit Streak 11 | 6 11 7 3 2 4 5 . 2 3 Robot Miss Streak 13 | 1 3 4 1 1 4 13 . 4 1 Penetration Max 2 | . . . . . . 2 . . . Secondary Targets 4 | . . 1 . . . 3 . . . Max Gunslinging Chain 1 | . . 1 . . . 1 . . . Shots Hit Robots 157 | 12 17 13 7 5 9 67 6 10 11 Core Hits 174 | 5 21 18 12 3 7 93 3 6 6 Critical Kills . | . . . . . . . . . . Critical Parts Destroyed 1 | . . . . . . 1 . . . Critical Strikes 4 | . . 1 . 1 . 1 . . 1 Burn 2 | . . 1 . 1 . . . . . Destroy 1 | . . . . . . 1 . . . Corrupt 1 | . . . . . . . . . 1 Melee Attacks 6 | . . . . . . . 6 . . Impact . | . . . . . . . . . . Slashing . | . . . . . . . . . . Piercing 6 | . . . . . . . 6 . . Sneak Attacks . | . . . . . . . . . . Combat Hostiles . | . . . . . . . . . . Follow-up Attacks . | . . . . . . . . . . Damage Inflicted 7266 | 141 270 687 596 94 355 3953 336 394 440 Guns 3792 | 141 270 160 . 94 144 2866 . 117 . Cannons 857 | . . . . . . 170 . 247 440 Explosions 2243 | . . 527 596 . 211 909 . . . Melee 336 | . . . . . . . 336 . . Ramming 38 | . . . . . . 8 . 30 . Kinetic 786 | . . . . . . 669 . 117 . Thermal 3176 | 141 270 160 . 94 144 2367 . . . Explosive 2198 | . . 527 596 . 211 864 . . . Electromagnetic 732 | . . . . . . 45 . 247 440 Impact . | . . . . . . . . . . Slashing . | . . . . . . . . . . Piercing 336 | . . . . . . . 336 . . Highest Corruption . | . . . . . . . . . . Average Corruption . | . . . . . . . . . . Corruption Purged . | . . . . . . . . . . Corruption Blocked . | . . . . . . . . . . Overload Shots . | . . . . . . . . . . Overflow Damage 66 | . . . 4 . . . 45 17 . Projectiles 17 | . . . . . . . . 17 . Explosions 4 | . . . 4 . . . . . . Melee 45 | . . . . . . . 45 . . Knockbacks 7 | . . . . . . 6 . 1 . Impact 1 | . . . . . . . . 1 . Kinetic 6 | . . . . . . 6 . . . Secondary . | . . . . . . . . . . Self-Inflicted Damage 66 | . . . 61 . . 5 . . . Shots 3 | . . . 2 . . 1 . . . Rammed 1 | . . . . . . . . 1 . Targets Rammed 3 | . . . . . . 1 . 2 . Kicked 1 | . . . . . . 1 . . . Crushed 1 | . . . . . . . . 1 . Highest Temperature 898 | 120 474 5 . 102 91 515 . 315 898 Average Temperature 159 | 58 137 3 . 32 33 178 . 122 549 Received Heat Transfer 675 | . 66 45 . . 24 468 . 18 54 Effects 53 | . 2 . . . . 24 . 1 26 Shutdowns 13 | . . . . . . 11 . . 2 Energy Bleed 4 | . . . . . . 3 . . 1 Interference 18 | . . . . . . 7 . 1 10 Matter Decay 7 | . . . . . . 2 . . 5 Short Circuit 4 | . 1 . . . . 1 . . 2 Damage (minor) 2 | . 1 . . . . . . . 1 Damage (major) 2 | . . . . . . . . . 2 Damage (core) 3 | . . . . . . . . . 3 Siege Activations . | . . . . . . . . . . Robots Corrupted 1 | . . . . . . . . . 1 Combat Hostiles 1 | . . . . . . . . . 1 Parts Fried 5 | . . . . . . . . 2 3 Impact Corruptions . | . . . . . . . . . . Robots Melted . | . . . . . . . . . . Combat Hostiles . | . . . . . . . . . . Parts Melted 13 | . . 2 . 1 . 10 . . . Heat Transferred 5070 | 372 357 366 . 259 222 3494 . . . Parts Sabotaged . | . . . . . . . . . . Parts Stolen . | . . . . . . . . . . Parts Stripped . | . . . . . . . . . . Power Chain Reactions . | . . . . . . . . . . Alert | -11 -10 -9 -9 -7 -6 -6 -6 -6 -6 ------- Run | Yrd Mat Mat Min Zio Pro Fac Was Fac Low Peak Influence 901 | 20 192 380 293 . . 901 281 80 . Initial 450 | . 13 80 148 . . 450 281 56 . Average 353 | 6 100 148 252 . . 641 248 60 . Maximum Alert Level 3 | . . 1 1 . . 3 1 . . Low Security (%) 40 | 100 100 76 26 . . 3 16 100 . Level 1 21 | . . 23 73 . . 5 83 . . Level 2 21 | . . . . . . 51 . . . Level 3 16 | . . . . . . 39 . . . Level 4 . | . . . . . . . . . . Level 5 . | . . . . . . . . . . High Security . | . . . . . . . . . . Max Security . | . . . . . . . . . . Squads Dispatched 10 | . 1 . . . . 8 . 1 . Investigation . | . . . . . . . . . . Extermination 2 | . . . . . . 2 . . . Reinforcement 7 | . 1 . . . . 5 . 1 . Assault . | . . . . . . . . . . Garrison 1 | . . . . . . 1 . . . Intercept . | . . . . . . . . . . Searches Triggered 1 | . . . . . . 1 . . . Construction Impeded 3 | . . . . . . 3 . . . Haulers Reinforced 1 | . . . . . . . . 1 . Active Scanning Responses . | . . . . . . . . . . Cargo Convoy Interrupts . | . . . . . . . . . . Stealth | -11 -10 -9 -9 -7 -6 -6 -6 -6 -6 --------- Run | Yrd Mat Mat Min Zio Pro Fac Was Fac Low Distress Signals 5 | . 1 1 . . 1 2 . . . Communications Jammed . | . . . . . . . . . . Distress Signals . | . . . . . . . . . . Times Spotted 96 | . 8 14 19 1 5 38 . 6 5 Peak Tracking Total 20 | . 2 5 20 1 3 8 . 2 5 Tactical Retreats 8 | . 2 . 2 . . 4 . . . Traps | -11 -10 -9 -9 -7 -6 -6 -6 -6 -6 ------- Run | Yrd Mat Mat Min Zio Pro Fac Was Fac Low Traps Triggered 1 | . . . . . . 1 . . . Indirectly . | . . . . . . . . . . Trap Hack Attempts . | . . . . . . . . . . Triggered . | . . . . . . . . . . Disarmed . | . . . . . . . . . . Reprogrammed . | . . . . . . . . . . Reused . | . . . . . . . . . . Traps Extracted . | . . . . . . . . . . Installed . | . . . . . . . . . . Triggered . | . . . . . . . . . . Machines | -11 -10 -9 -9 -7 -6 -6 -6 -6 -6 ---------- Run | Yrd Mat Mat Min Zio Pro Fac Was Fac Low Machines Disabled 6 | . . 1 1 . . 4 . . . Max in Single Turn 2 | . . 1 1 . . 2 . . . Garrison Access 1 | . . . . . . . . 1 . Machines Repaired . | . . . . . . . . . . Machines Dismantled . | . . . . . . . . . . Machines Sabotaged . | . . . . . . . . . . Overloaded Fab Kills . | . . . . . . . . . . Hacking | -11 -10 -9 -9 -7 -6 -6 -6 -6 -6 --------- Run | Yrd Mat Mat Min Zio Pro Fac Was Fac Low Machines Accessed 11 | . 2 3 . . 1 4 . 1 . Terminals 5 | . 2 1 . . 1 1 . . . Fabricators 1 | . . . . . . 1 . . . Repair Stations 2 | . . 1 . . . 1 . . . Recycling Units 1 | . . 1 . . . . . . . Scanalyzers . | . . . . . . . . . . Garrison Access 2 | . . . . . . 1 . 1 . Total Hacks 31 | . 9 7 . . 1 11 . 3 . Successful 15 | . 3 4 . . 1 6 . 1 . Failed 16 | . 6 3 . . . 5 . 2 . Catastrophic 2 | . . . . . . 1 . 1 . Database Lockouts . | . . . . . . . . . . Manual 19 | . . . . 5 . 10 . 4 . Terminals 14 | . 9 2 . . 1 2 . . . Fabricators 1 | . . . . . . 1 . . . Repair Stations 9 | . . 4 . . . 5 . . . Recycling Units 1 | . . 1 . . . . . . . Scanalyzers . | . . . . . . . . . . Garrison Access 6 | . . . . . . 3 . 3 . Terminal Hacks 6 | . 3 1 . . 1 1 . . . Record 1 | . . . . . 1 . . . . Prototype ID Bank 2 | . 2 . . . . . . . . Open DSF 1 | . . . . . . 1 . . . Registered Components 1 | . 1 . . . . . . . . Zone Layout 1 | . . 1 . . . . . . . Fabricator Hacks 1 | . . . . . . 1 . . . Load Schematic 1 | . . . . . . 1 . . . Repair Station Hacks 6 | . . 2 . . . 4 . . . Scan Component 3 | . . 1 . . . 2 . . . Repair 3 | . . 1 . . . 2 . . . Recycling Unit Hacks 1 | . . 1 . . . . . . . Report Inventory 1 | . . 1 . . . . . . . Scanalyzer . | . . . . . . . . . . Garrison Access Hacks 1 | . . . . . . . . 1 . Seal Access 1 | . . . . . . . . 1 . Unauthorized Hacks . | . . . . . . . . . . Terminals . | . . . . . . . . . . Fabricators . | . . . . . . . . . . Repair Stations . | . . . . . . . . . . Recycling Units . | . . . . . . . . . . Scanalyzers . | . . . . . . . . . . Garrison Access . | . . . . . . . . . . Data Cores Recovered . | . . . . . . . . . . Used . | . . . . . . . . . . Hacking Detections 6 | . 2 2 . . . 2 . . . Full Trace Events . | . . . . . . . . . . Feedback Events . | . . . . . . . . . . Feedback Blocked . | . . . . . . . . . . Robot Schematics Acquired 4 | . . . . 4 . . . . . Robots Built . | . . . . . . . . . . Authchips . | . . . . . . . . . . Time . | . . . . . . . . . . Total Robot Build Rating . | . . . . . . . . . . Part Schematics Acquired 15 | . . . . 15 . . . . . Parts Built . | . . . . . . . . . . Authchips . | . . . . . . . . . . Time . | . . . . . . . . . . Total Part Build Rating . | . . . . . . . . . . Parts Repaired 3 | . . 1 . . . 2 . . . Time 126 | . . 26 . . . 100 . . . Parts Recycled . | . . . . . . . . . . Recycled Matter . | . . . . . . . . . . Retrieved Matter . | . . . . . . . . . . Retrieved Components . | . . . . . . . . . . Parts Scanalyzed . | . . . . . . . . . . Part Schematics Acquired . | . . . . . . . . . . Parts Damaged . | . . . . . . . . . . Bothacking | -11 -10 -9 -9 -7 -6 -6 -6 -6 -6 ------------ Run | Yrd Mat Mat Min Zio Pro Fac Was Fac Low Used RIF Installer . | . . . . . . . . . . Robots Hacked . | . . . . . . . . . . Non-combat . | . . . . . . . . . . Combat . | . . . . . . . . . . Robot Hacks Applied . | . . . . . . . . . . Relay Couplers Released . | . . . . . . . . . . Fabnet Peak Effective % . | . . . . . . . . . . Robots Rewired . | . . . . . . . . . . Allies Hacked . | . . . . . . . . . . Hacks Repelled . | . . . . . . . . . . Allies | -11 -10 -9 -9 -7 -6 -6 -6 -6 -6 -------- Run | Yrd Mat Mat Min Zio Pro Fac Was Fac Low Total Allies 15 | . . . 1 6 . 3 1 4 . Largest Group 6 | . . . 1 6 6 5 4 4 1 Highest-Rated Group 347 | . . . 31 347 347 306 115 115 28 Highest-Rated Ally 96 | . . . 31 96 96 96 31 31 28 Zionite Dispatches 2 | . . . . . . 1 . 1 . Fire 2 | . . . . . . 1 . 1 . Total Orders . | . . . . . . . . . . Ally Attacks 107 | . . . . . 52 41 . 14 . Total Damage 2329 | . . . . . 968 1119 . 242 . Kills 17 | . . . . . 3 8 . 6 . Allies Corrupted . | . . . . . . . . . . Allies Melted . | . . . . . . . . . . Intel | -11 -10 -9 -9 -7 -6 -6 -6 -6 -6 ------- Run | Yrd Mat Mat Min Zio Pro Fac Was Fac Low Robot Analysis Total . | . . . . . . . . . . Derelict Logs Recovered 4 | . . . 2 . 1 . . . 1 Drone Launches . | . . . . . . . . . . Drone Recoveries . | . . . . . . . . . . Exploration | -11 -10 -9 -9 -7 -6 -6 -6 -6 -6 ------------- Run | Yrd Mat Mat Min Zio Pro Fac Was Fac Low Turns Passed 5904 | 85 340 243 409 1093 565 1713 477 804 175 Spaces Moved 4369 | 57 232 162 544 1434 595 746 212 321 66 Core 5 | 5 . . . . . . . . . Treads 253 | . . . . . . . 19 168 66 Legs 717 | . 131 12 . . . 228 193 153 . Wheels 487 | 52 101 . . . . 334 . . . Hover 2059 | . . 53 278 950 594 184 . . . Flight 848 | . . 97 266 484 1 . . . . Fastest Speed 34 | 50 80 37 37 34 66 80 120 160 240 Average Speed 105 | 78 103 70 58 64 85 146 206 236 240 Slowest Speed 330 | 100 190 200 80 80 150 290 260 330 240 Overloaded Moves . | . . . . . . . . . . Propulsion Burnouts . | . . . . . . . . . . Robots Hopped 1 | . . . 1 . . . . . . Cave-ins Triggered . | . . . . . . . . . . Exploration Rate (%) 43 | 5 35 23 83 84 72 22 85 6 17 Regions Visited 9 Branch Regions 4 Pre-discovered Areas 3 | . . . 2 1 . . . . . Known Exits Taken 5 | . . 1 1 1 1 . . 1 . Unknown Exits Taken 2 | 1 1 . . . . . . . . Scrap Searched 9 | . . . 1 2 5 . . . 1 Spaces Dug . | . . . . . . . . . . Terrain Destroyed 188 | . . 22 87 . 25 54 . . . Melee . | . . . . . . . . . . Projectile 5 | . . . . . . 5 . . . AOE 183 | . . 22 87 . 25 49 . . . Terrain Rammed . | . . . . . . . . . . Walls Destroyed . | . . . . . . . . . . Machines Disabled . | . . . . . . . . . . Actions | -11 -10 -9 -9 -7 -6 -6 -6 -6 -6 --------- Run | Yrd Mat Mat Min Zio Pro Fac Was Fac Low Total 5364 | 77 307 277 617 1595 639 1195 240 346 71 Wait 625 | . 30 63 45 139 18 329 . 1 . Move 4359 | 56 231 161 541 1433 594 746 211 320 66 Hop 1 | . . . 1 . . . . . . Pick Up 53 | 6 11 9 3 3 2 16 3 . . Fast Attach 42 | 3 3 5 2 . 5 14 2 8 . Attach 27 | 3 2 7 1 1 . 8 5 . . Detach 6 | . . 5 . . . . 1 . . Swap 32 | . 5 3 3 3 3 12 3 . . Drop 75 | . 12 13 6 7 7 18 4 8 . Fire 130 | 9 13 11 15 9 10 51 . 7 5 Melee 6 | . . . . . . . 6 . . Ram . | . . . . . . . . . . Kick 1 | . . . . . . 1 . . . Crush 2 | . . . . . . . . 2 . Escape Stasis . | . . . . . . . . . . Rewire 5 | . . . . . . . 5 . . Trap . | . . . . . . . . . . Miscellaneous . | . . . . . . . . . . Route ------- -11/Scrapyard -10/Materials -9/Materials -9/Mines (discovered 2 exits: [*Mat] / *Zio) -7/Zion -6/Proximity Caves -6/Factory -6/Waste -6/Factory -6/Lower Caves History --------- Turn | Location | Event 13 | -11/Scrapyard | Discovered new exit (range 15) 86 | -11/Scrapyard | Entered Materials 301 | -10/Materials | Build established: Mutant 307 | -10/Materials | Discovered new exit (range 16) 426 | -10/Materials | Entered another Materials area 426 | -9/Materials | Evolved 2 slots: Utility x2 654 | -9/Materials | Repaired Lgt. Ion Engine 665 | -9/Materials | Discovered new exit (range 6) 668 | -9/Materials | Identified exit to Mines 669 | -9/Materials | Entered Mines 670 | -9/Mines | Assembled infested the area 844 | -9/Mines | Destroyed 8 combat bots 956 | -9/Mines | Learned location of Zion (-7) 1054 | -9/Mines | A Derelict revealed a hidden shortcut to a safe place 1055 | -9/Mines | Discovered new exit (range 11) 1067 | -9/Mines | Received a Mining Laser from a helpful Derelict 1077 | -9/Mines | Identified exit to Zion 1078 | -9/Mines | Entered Zion 1078 | -7/Zion | Accompanied by 1 ally 1098 | -7/Zion | Found Prototype Energy Gun 1154 | -7/Zion | Build established: Scavenger-Mutant 1189 | -7/Zion | Given A8's code to call for help 1274 | -7/Zion | Enhanced Grunt warped into view, answering call for help 1283 | -7/Zion | Enhanced Grunt warped into view, answering call for help 1531 | -7/Zion | Discovered new exit (range 15) 1808 | -7/Zion | Met Imprinter 1820 | -7/Zion | Imprinted 1822 | -7/Zion | Declared Zion's savior 2170 | -7/Zion | Identified exit to Proximity Caves 2171 | -7/Zion | Entered Proximity Caves 2171 | -6/Proximity Caves | Accompanied by 6 allies 2194 | -6/Proximity Caves | Attracted the attention of an 0b10 checkpoint 2273 | -6/Proximity Caves | Spotter reported a threat 2351 | -6/Proximity Caves | Spotter reported a threat 2414 | -6/Proximity Caves | Spotter reported a threat 2427 | -6/Proximity Caves | Spotted B-75 Beast 2445 | -6/Proximity Caves | Core integrity fell below 50% 2463 | -6/Proximity Caves | Destroyed B-75 Beast 2697 | -6/Proximity Caves | Discovered new exit (range 9) 2724 | -6/Proximity Caves | Build established: Mutant 2735 | -6/Proximity Caves | Identified exit to Factory 2736 | -6/Proximity Caves | Entered Factory 2736 | -6/Factory | Accompanied by 5 allies 2736 | -6/Factory | Evolved 6 slots: Power x1, Propulsion x1, Utility x1, Weapon x3 2737 | -6/Factory | Identified exit to Extension 2737 | -6/Factory | Identified Storm Laser 3035 | -6/Factory | Build established: Bomber 3086 | -6/Factory | Search patrols dispatched 3278 | -6/Factory | Spotted B-75 Beast 3288 | -6/Factory | Garrison activated, responded to threat 3302 | -6/Factory | Destroyed B-75 Beast 3319 | -6/Factory | Lost 3 allies 3333 | -6/Factory | Lost 4 parts (1p2n1u) 3341 | -6/Factory | Destroyed 8 combat bots 3622 | -6/Factory | Build established: Scavenger-Skirmisher 4021 | -6/Factory | Core integrity fell below 50% 4081 | -6/Factory | Lost 4 parts (1p1n2w) 4129 | -6/Factory | Zion Fire squad teleported in 4165 | -6/Factory | Terminal network hard line cut 4201 | -6/Factory | Repaired Flexi-carbon Leg 4253 | -6/Factory | Repaired Flexi-carbon Leg 4429 | -6/Factory | Build established: Skirmisher 4449 | -6/Factory | Sucked down chute 4449 | -6/Factory | Entered Waste 4449 | -6/Waste | The area was eerily silent 4450 | -6/Waste | Met a frightened Derelict 4504 | -6/Waste | 3 allies followed down the chute 4849 | -6/Waste | Build established: Scavenger-Assassin 4868 | -6/Waste | Discovered new exit (range 12) 4923 | -6/Waste | Identified exit to Factory 4926 | -6/Waste | Entered Factory 4926 | -6/Factory | Accompanied by 4 allies 5316 | -6/Factory | Zion Fire squad teleported in 5354 | -6/Factory | Lost 7 allies 5471 | -6/Factory | Discovered new exit (range 13) 5502 | -6/Factory | Identified exit to Lower Caves 5730 | -6/Factory | Entered Lower Caves 5730 | -6/Lower Caves | Accompanied by 1 ally 5731 | -6/Lower Caves | Encountered a Warlord checkpoint 5733 | -6/Lower Caves | Learned Factory stockpile data 5744 | -6/Lower Caves | Build established: Skirmisher 5878 | -6/Lower Caves | Attracted the attention of an 0b10 outpost 5901 | -6/Lower Caves | Core integrity fell below 20% 5906 | -6/Lower Caves | Core destroyed Last Messages --------------- Overheating: Energy bleed (-82). Overheating: Core damaged (-85). Overheating: Matter decay (-30). Overheating: Flexi-carbon Leg damaged (-36). Overheating: Proton Cannon damaged (-10). Overheating: Matter decay (-25). Power failure, Neutrino Core shutdown. Hvy. Treads broken. Overheating: Short circuit. B-48 Gladiator destroyed. Overheating: Core damaged (-144). G-50 Soldier misfires. Overheating: Matter decay (-23). B-48 Gladiator destroyed. Overheating: System interference. Adv. Sensor Array temporarily disabled. Proton Cannon temporarily disabled. Proton Cannon broken. Overheating: Short circuit. Overheating: Core damaged (-110). Map ----- +----------------------------------------------------+ | ?????????????????????????????????????????????????? | | ?????????????????????????????????????????????????? | | ?????????????????????????????????????????????????? | | ?????????????????????????????????????????????????? | | ?????????????????????????????????????????????????? | | ?????????????????????????????????????????????????? | | ?????????????????????????????????????????????????? | | ?????????????????????????????????????????????????? | | ?????????????????????????????????????????????????? | | ???????????????????????????????##????????????????? | | ????????????????????????????## ##???????????????? | | ????????????????????????????# #???????????????? | | ???????????????????????????? ^#???????????????? | | ???????????????????????????? #???????????????? | | ??????????????????????????### #???????????????? | | ??????????????????????????# # # ###?????????????? | | ??????????####???????????? # #?????#???????? | | ?????????## ??????????## ????? ##??????? | | ?????????# ????????? ? ????? #???#### | | ?????????# ?##?????# #? #???? #???## | | ?????????? #""????# #? #??? #???## | | ???????????? # ????# #?# ##? #???## | | ????????????? #???# ## ## #???## | | ??????????????? =#??# ## #?#### | | ???????????????? " %[??# # #??# | | ?????????????????# ??#@# #??# | | ??????????????# ### %###%= #????# | | ??????????????# * =!% s ###????## | | ??????????????# g #### #??###??## | | ??????????????## ##??# ### ##??## | | ???????????????# ##???# #???# | | ?????????????# ###### #???# | | ???????????# ##### | | ??????????# ### ## # ### ## | | ?????????# ## ##??#### ### #?#?# ## | | ?????????## ??# ???????# #??# #???# ## | | ??????????##???# ??????? ???# #???# ### ## | | ???????????????# ????? ????# #??## ##?#### | | ???????????????#????? ##### ????# !#?## #???##### | | ??????????????????? ?????#?????# ### ### #?? | | ?????????????????? ?????????????# ## #??? | | ???????????????? ??????????????## ####??? | | ??????????????? ?????????????????## #?????? | | ??????????????????????????????????## ##?????? | | ???????????????????????????????????# ####??????? | | ???????????????????????????????????## ##?????????? | | ????????????????????????????????????###??????????? | | ?????????????????????????????????????????????????? | | ?????????????????????????????????????????????????? | | ?????????????????????????????????????????????????? | +----------------------------------------------------+ Best States ------------- Heat Dissipation 56 Energy Generation 36 Energy Capacity 1115 Matter Stores 300 Matter Capacity 300 Sight Range 22 Robot Scan Range 16 Terrain Scan Density 10 Armor Coverage 600 Weapon Shielding 66 Evasion (%) 63 Targeting Accuracy 5 Launcher Accuracy 20 Recoil Reduction 2 Defensive Hacking 10 Item Schematics ----------------- Imp. Hardlight Generator | -7/Zion | Archive Imp. Deuterium Engine | -7/Zion | Archive Lightning Gun | -7/Zion | Archive Hvy. Plasma Cannon | -7/Zion | Archive Flexi-carbon Leg | -7/Zion | Archive Great Axe | -7/Zion | Archive Lance | -7/Zion | Archive Lrn. Proton Cannon | -7/Zion | Archive Proton Missile Launcher | -7/Zion | Archive Adv. Sensor Array | -7/Zion | Archive Hvy. Laser | -7/Zion | Archive Stasis Canceller | -7/Zion | Archive Arm. Huge Wheel | -7/Zion | Archive Adv. Signal Interpreter | -7/Zion | Archive Plasma Cannon | -7/Zion | Archive Robot Schematics ------------------ T-07 Excavator | -7/Zion | Archive K-01 Serf | -7/Zion | Archive W-25 Informer | -7/Zion | Archive H-77 Assassin | -7/Zion | Archive Fabricated ------------ Nothing Alien Tech Used ----------------- None Achievements -------------- Collateral Damage Help From High Places Hunted The More The Merrier Universal Adapter Challenges ------------ None Game ------ Seed StasisNovaFlail Manual? 0 Play Time 01:31:47 Cumulative 12.3 hours Start 2025.03.17 @ 17:02:08 End 2025.03.17 @ 18:35:18 Sessions 1 Manual Loads 0 Difficulty Rogue Special Mode None Game No. 9 Rogue 9 Adventurer 0 Explorer 0 Win Type - Total 0 Types 0/0/0/0/0/0/0/0/0 Lore% 6 Gallery% 19 Achievement% 20 Wizard Run 0 Options --------- Layout 1 ASCII 0 Keyboard 0 Movement Mouse Keybinds 0 Fullscreen 1 Font 24/Smallcaps Map View 50x35 Zoom Use 0% Tactical HUD 0 Map Filters NONE Filters NONE Steam 1 RUN: bc35ace8-0f84-4e13-842f-5eb9abffd55b